Cogmind - Beta 16.1 @@@ ROGUE MODE // 2026.02.10 @ 20:25:55 Player: ywiktor Result: Destroyed by D-53 Grenadier with Mini Grenade Launcher Performance ------------- Evolutions (1) 500 Regions Visited (4) 800 Robots Destroyed (20) 100 Value Destroyed (406) 406 Prototype IDs (1) 20 Alien Tech Used (0) 0 Bonus (-8) -8 TOTAL SCORE: 1818 Bonus ------- Friendly Fire -8 Cogmind --------- Core Integrity 0/400 Matter 224/300 Energy 100/100 System Corruption 0% Temperature Cool (0) Movement Core (100) Ox1 Location -9/Mines Parts ------- > --- POWER (1) -------- (None) > --- PROPULSION (3) --- (None) > --- UTILITY (3) ------ Small Storage Unit Improved Signal Interpreter Hacking Suite > --- WEAPON (2) ------- (None) > --- INVENTORY (8) ---- Ion Engine Aluminum Leg Experimental Sensor Array Hardened Medium Armor Plating Hacking Suite High-powered Shotgun Rocket Launcher Datajack Peak State ------------ > --- POWER ------------ Light Ion Engine > --- PROPULSION ------- Carbon-fiber Leg Carbon-fiber Leg Carbon-fiber Leg > --- UTILITY ---------- Small Storage Unit Experimental Sensor Array Improved Signal Interpreter > --- WEAPON ----------- Assault Rifle Assault Rifle > --- INVENTORY -------- Light Ion Engine Aluminum Leg Carbon-fiber Leg Light Armor Plating Hacking Suite Medium Laser Light Assault Rifle Datajack [Rating: 26] Favorites ----------- Power Light Ion Engine Engine Light Ion Engine Propulsion Carbon-fiber Leg Treads Light Treads Leg Carbon-fiber Leg Utility Small Storage Unit Device Experimental Sensor Array Storage Small Storage Unit Processor Improved Signal Interpreter Hackware Hacking Suite Protection Light Armor Plating Weapon Assault Rifle Ballistic Gun Assault Rifle Launcher Rocket Launcher Build | -11 -10 -10 -9 -9 ------- Run | Yrd Mat Min Mat Min Slots Evolved 2 | . . . 2 . Power . | . . . . . Propulsion 1 | . . . 1 . Utility 1 | . . . 1 . Weapon . | . . . . . Parts Attached 24 | 7 1 2 14 . Power 3 | 1 1 . 1 . Engine 3 | 1 1 . 1 . Core . | . . . . . Reactor . | . . . . . Propulsion 10 | 3 . . 7 . Treads 1 | 1 . . . . Leg 9 | 2 . . 7 . Wheel . | . . . . . Hover . | . . . . . Flight . | . . . . . Utility 5 | 1 . 2 2 . Device 1 | . . 1 . . Storage 1 | 1 . . . . Processor 1 | . . . 1 . Hackware 1 | . . . 1 . Protection 1 | . . 1 . . Artifact . | . . . . . Weapon 6 | 2 . . 4 . Energy Gun . | . . . . . Energy Cannon . | . . . . . Ballistic Gun 5 | 2 . . 3 . Ballistic Cannon . | . . . . . Launcher 1 | . . . 1 . Special Weapon . | . . . . . Impact Weapon . | . . . . . Slashing Weapon . | . . . . . Piercing Weapon . | . . . . . Special Melee Weapon . | . . . . . Unidentified Prototypes 1 | . . 1 . . Parts Lost 9 | . . . 3 6 Power 2 | . . . 1 1 Propulsion 5 | . . . 2 3 Utility . | . . . . . Weapon 2 | . . . . 2 Highest Loss Streak 6 | . . . 3 6 To Critical Strikes . | . . . . . Average Backups 7 | 2 7 8 7 8 Power . | . 1 1 . 1 Propulsion 2 | 2 3 2 1 1 Utility 1 | . . 1 2 3 Weapon 1 | . 2 2 1 2 Tool/Special . | . . . . . Unused Backups 16 | . 6 1 4 5 Power 1 | . . . . 1 Propulsion 7 | . 4 1 2 . Utility 4 | . 1 . 1 2 Weapon 3 | . 1 . 1 1 Tool/Special 1 | . . . . 1 Average Slot Usage (%) 95 | . 85 94 98 97 Engine 12 | . 14 14 11 9 Leg 30 | . 28 28 32 33 Storage 12 | . 14 14 11 11 Processor 6 | . . . 10 11 Hackware 4 | . . . 6 11 Protection 3 | . . 8 3 . Ballistic Gun 23 | . 28 28 19 21 Launcher 1 | . . . 2 . Peak Build Rating 26 | 6 7 16 26 20 Average Rating 13 | 3 6 7 19 19 On Entrance 8 | . 6 7 8 20 Avg Prop Armor Cover (%) . | . . . . . Naked Turns . | . . . . . Heaviest Build 17 | 12 12 15 17 12 Greatest Support 45 | 20 20 20 45 40 Greatest Overweight (x) 1 | 1 . . . . Average Overweight (x) . | . . . . . Largest Inventory Capacity 8 | 8 8 8 8 8 Average Capacity 7 | 7 8 8 8 8 Most Carried 8 | 6 8 8 8 8 Average Carried 7 | 3 7 8 7 8 Final Capacity 8 | 8 8 8 8 8 Final Carried 8 | 6 8 8 8 8 Class Distribution -------------------- 92% | Mutant 7% | Scavenger-Mutant Dominant Class ---------------- Mutant | -10/Materials Mutant | -10/Mines Mutant | -9/Materials Mutant | -9/Mines Resources | -11 -10 -10 -9 -9 ----------- Run | Yrd Mat Min Mat Min Matter Collected 657 | 160 50 41 406 . Remotely . | . . . . . Salvage Created 431 | . 50 . 360 21 Parts 49 | . 13 . 36 . Haulers Intercepted . | . . . . . Recyclers Shooed . | . . . . . Parts Field Recycled . | . . . . . Retrieved Matter . | . . . . . Parts Self-Destructed . | . . . . . Prevented . | . . . . . Parts Restored . | . . . . . Kills | -11 -10 -10 -9 -9 ------- Run | Yrd Mat Min Mat Min Combat Hostiles Destroyed 19 | . 3 . 14 2 Guns 15 | . 3 . 10 2 AOE 4 | . . . 4 . Classes Destroyed 7 | . 2 . 4 1 Operator 2 | . 1 . 1 . Watcher 1 | . . . 1 . Swarmer 11 | . 3 . 8 . Grunt 4 | . . . 4 . Duelist 1 | . . . 1 . Sentry 1 | . . . 1 . Assembled 2 | . . . . 2 Best Kill Streak 6 | . 3 . 6 2 Combat Bots Only 5 | . 3 . 5 2 Max Kills in Single Turn 2 | . 2 . 2 1 Gunslinging 1 | . 1 . . . Exploded 2 | . . . 2 . Melee . | . . . . . Uniques/NPCs Destroyed . | . . . . . Combat | -11 -10 -10 -9 -9 -------- Run | Yrd Mat Min Mat Min Hostile Shots Fired 137 | . 27 . 95 15 Missed 44 | . 8 . 35 1 Hits 93 | . 19 . 60 14 Melee 3 | . . . 3 . Projectile 90 | . 19 . 57 14 AOE 15 | . . . . 15 Damage Taken 1542 | . 149 . 745 648 Core 453 | . 44 . 149 260 Absorbed by Shields . | . . . . . Core Remaining (%) 91 | 100 . 82 . . Volleys Fired 59 | . 14 . 39 6 Largest 2 | . 2 . 2 2 Hottest 53 | . 40 . 53 43 Shots Fired 104 | . 28 . 64 12 Gun 99 | . 28 . 59 12 Cannon . | . . . . . Launcher 5 | . . . 5 . Special . | . . . . . Kinetic 99 | . 28 . 59 12 Thermal . | . . . . . Explosive 5 | . . . 5 . Electromagnetic . | . . . . . Robot Hit Streak 10 | . 3 . 10 1 Robot Miss Streak 4 | . 4 . 2 3 Penetration Max . | . . . . . Secondary Targets 3 | . 2 . 1 . Max Gunslinging Chain 1 | . 1 . 1 . Shots Hit Robots 60 | . 9 . 46 5 Core Hits 39 | . 5 . 29 5 Critical Kills 2 | . . . 2 . Critical Parts Destroyed . | . . . . . Critical Strikes 2 | . . . 2 . Destroy 2 | . . . 2 . Melee Attacks . | . . . . . Impact . | . . . . . Slashing . | . . . . . Piercing . | . . . . . Sneak Attacks . | . . . . . Combat Hostiles . | . . . . . Follow-up Attacks . | . . . . . Damage Inflicted 1034 | . 117 . 834 83 Guns 666 | . 117 . 466 83 Cannons . | . . . . . Explosions 368 | . . . 368 . Melee . | . . . . . Ramming . | . . . . . Kinetic 666 | . 117 . 466 83 Thermal . | . . . . . Explosive 368 | . . . 368 . Electromagnetic . | . . . . . Impact . | . . . . . Slashing . | . . . . . Piercing . | . . . . . Highest Corruption . | . . . . . Average Corruption . | . . . . . Corruption Purged . | . . . . . Corruption Blocked . | . . . . . Overload Shots . | . . . . . Overflow Damage . | . . . . . Projectiles . | . . . . . Explosions . | . . . . . Melee . | . . . . . Knockbacks . | . . . . . Impact . | . . . . . Kinetic . | . . . . . Secondary . | . . . . . Self-Inflicted Damage 44 | . . . 44 . Shots 1 | . . . 1 . Rammed . | . . . . . Targets Rammed . | . . . . . Kicked . | . . . . . Crushed . | . . . . . Highest Temperature 8 | . . . 8 . Average Temperature 4 | . . . 4 . Received Heat Transfer 219 | . . . 219 . Siege Activations . | . . . . . Martial Activations . | . . . . . Shielding Activations . | . . . . . Robots Disrupted . | . . . . . Combat Hostiles . | . . . . . Robots Corrupted . | . . . . . Combat Hostiles . | . . . . . Parts Fried . | . . . . . Impact Corruptions . | . . . . . Robots Melted . | . . . . . Combat Hostiles . | . . . . . Parts Melted . | . . . . . Heat Transferred . | . . . . . Parts Sabotaged . | . . . . . Parts Stolen . | . . . . . Parts Stripped . | . . . . . Power Chain Reactions . | . . . . . Alert | -11 -10 -10 -9 -9 ------- Run | Yrd Mat Min Mat Min Maximum Alert Level 1 | . . . 1 . Low Security (%) 94 | 100 100 100 87 100 Level 1 5 | . . . 12 . Level 2 . | . . . . . Level 3 . | . . . . . Level 4 . | . . . . . Level 5 . | . . . . . High Security . | . . . . . Max Security . | . . . . . Peak Influence 213 | . 64 . 213 64 Initial 64 | . . . . 64 Average 65 | . 24 . 134 34 Influence Increases 481 | . 79 . 402 . Destroy 0b10 Robot/C 340 | . 60 . 280 . Destroy 0b10 Robot/NC 15 | . 5 . 10 . Destroy Leader 72 | . 10 . 62 . Successful Hack 8 | . 4 . 4 . Disable Machine 30 | . . . 30 . Destroy Structure 16 | . . . 16 . Influence Decreases 481 | . 79 . 236 166 Entered New Map 102 | . . . . 102 Time Decay 339 | . 79 . 206 54 Lost Part 40 | . . . 30 10 Squads Dispatched 2 | . . . 2 . Investigation . | . . . . . Extermination . | . . . . . Reinforcement 2 | . . . 2 . Assault . | . . . . . Garrison . | . . . . . Intercept . | . . . . . Searches Triggered . | . . . . . Construction Impeded . | . . . . . Haulers Reinforced . | . . . . . Active Scanning Responses . | . . . . . Cargo Convoy Interrupts . | . . . . . Stealth | -11 -10 -10 -9 -9 --------- Run | Yrd Mat Min Mat Min Distress Signals 5 | . . . 5 . Communications Jammed . | . . . . . Distress Signals . | . . . . . Times Spotted 34 | . 4 . 21 9 Peak Tracking Total 8 | . 3 . 8 3 Tactical Retreats 1 | . . . . 1 Traps | -11 -10 -10 -9 -9 ------- Run | Yrd Mat Min Mat Min Traps Triggered . | . . . . . Indirectly . | . . . . . Trap Hack Attempts . | . . . . . Triggered . | . . . . . Disarmed . | . . . . . Reprogrammed . | . . . . . Reused . | . . . . . Traps Extracted . | . . . . . Installed . | . . . . . Triggered . | . . . . . Machines | -11 -10 -10 -9 -9 ---------- Run | Yrd Mat Min Mat Min Machines Disabled 3 | . 1 . 2 . Max in Single Turn 2 | . 1 . 2 . Machines Repaired . | . . . . . Machines Dismantled . | . . . . . Machines Sabotaged . | . . . . . Overloaded Fab Kills . | . . . . . Hacking | -11 -10 -10 -9 -9 --------- Run | Yrd Mat Min Mat Min Machines Accessed 5 | . 2 . 3 . Terminals 4 | . 2 . 2 . Fabricators . | . . . . . Repair Stations . | . . . . . Recycling Units . | . . . . . Scanalyzers 1 | . . . 1 . Garrison Access . | . . . . . Total Hacks 11 | . 6 . 5 . Successful 4 | . 1 . 3 . Failed 7 | . 5 . 2 . Catastrophic 2 | . 1 . 1 . Database Lockouts . | . . . . . Manual 5 | . 3 . 2 . Terminals 9 | . 6 . 3 . Fabricators . | . . . . . Repair Stations . | . . . . . Recycling Units . | . . . . . Scanalyzers 2 | . . . 2 . Garrison Access . | . . . . . Terminal Hacks 2 | . 1 . 1 . Locate Traps 1 | . 1 . . . Hauler Manifests 1 | . . . 1 . Fabricator Hacks . | . . . . . Repair Station Hacks . | . . . . . Recycling Unit Hacks . | . . . . . Scanalyzer 2 | . . . 2 . Insert Component 1 | . . . 1 . Analyze 1 | . . . 1 . Garrison Access Hacks . | . . . . . Unauthorized Hacks . | . . . . . Terminals . | . . . . . Fabricators . | . . . . . Repair Stations . | . . . . . Recycling Units . | . . . . . Scanalyzers . | . . . . . Garrison Access . | . . . . . Data Cores Recovered 1 | . 1 . . . Used . | . . . . . Hacking Detections 5 | . 2 . 3 . Full Trace Events . | . . . . . Feedback Events . | . . . . . Feedback Blocked . | . . . . . Robot Schematics Acquired . | . . . . . Robots Built . | . . . . . Authchips . | . . . . . Time . | . . . . . Total Robot Build Rating . | . . . . . Part Schematics Acquired 1 | . . . 1 . Parts Built . | . . . . . Authchips . | . . . . . Time . | . . . . . Total Part Build Rating . | . . . . . Part Studies Acquired . | . . . . . Parts Repaired . | . . . . . Time . | . . . . . Parts Recycled . | . . . . . Recycled Matter . | . . . . . Retrieved Matter . | . . . . . Retrieved Components . | . . . . . Parts Scanalyzed 1 | . . . 1 . Part Schematics Acquired 1 | . . . 1 . Parts Damaged . | . . . . . Bothacking | -11 -10 -10 -9 -9 ------------ Run | Yrd Mat Min Mat Min Used RIF Installer . | . . . . . Robots Hacked . | . . . . . Non-combat . | . . . . . Combat . | . . . . . Robot Hacks Applied . | . . . . . Relay Couplers Released . | . . . . . Fabnet Peak Effective % . | . . . . . Robots Rewired . | . . . . . Allies Hacked . | . . . . . Hacks Repelled . | . . . . . Allies | -11 -10 -10 -9 -9 -------- Run | Yrd Mat Min Mat Min Total Allies . | . . . . . Largest Group . | . . . . . Highest-Rated Group . | . . . . . Highest-Rated Ally . | . . . . . Total Orders . | . . . . . Ally Attacks . | . . . . . Total Damage . | . . . . . Kills . | . . . . . Allies Corrupted . | . . . . . Allies Melted . | . . . . . Intel | -11 -10 -10 -9 -9 ------- Run | Yrd Mat Min Mat Min Active Infowar (turns) 39 | . . 1 38 . Sensors 39 | . . 1 38 . Robot Analysis Total . | . . . . . Derelict Logs Recovered 2 | . . 2 . . Drone Launches . | . . . . . Drone Recoveries . | . . . . . Exploration | -11 -10 -10 -9 -9 ------------- Run | Yrd Mat Min Mat Min Turns Passed 1235 | 97 171 298 536 133 Spaces Moved 843 | 86 96 243 322 96 Core 38 | 38 . . . . Treads 1 | 1 . . . . Legs 804 | 47 96 243 322 96 Wheels . | . . . . . Hover . | . . . . . Flight . | . . . . . Fastest Speed 50 | 50 120 120 120 120 Average Speed 116 | 90 120 120 120 120 Slowest Speed 160 | 160 120 120 120 120 Overloaded Moves . | . . . . . Propulsion Burnouts . | . . . . . Robots Hopped . | . . . . . Potential Cave-ins . | . . . . . Cave-ins Triggered . | . . . . . Exploration Rate (%) 26 | 4 13 62 27 26 Regions Visited 4 Branch Regions 2 Pre-discovered Areas 1 | . . 1 . . Known Exits Taken 1 | . . . 1 . Unknown Exits Taken 3 | 1 1 1 . . Scrap Searched 1 | . . 1 . . Spaces Dug . | . . . . . Terrain Destroyed 18 | . . . 18 . Melee . | . . . . . Projectile . | . . . . . AOE 18 | . . . 18 . Terrain Rammed . | . . . . . Walls Destroyed . | . . . . . Machines Disabled . | . . . . . Actions | -11 -10 -10 -9 -9 --------- Run | Yrd Mat Min Mat Min Total 1000 | 103 128 249 417 103 Wait 21 | 1 1 . 18 1 Move 839 | 85 95 242 321 96 Hop . | . . . . . Pick Up 25 | 6 9 1 9 . Fast Attach 13 | 7 . 3 3 . Attach 4 | 1 . . 3 . Detach 2 | 2 . . . . Swap 13 | . 1 . 12 . Drop 24 | 1 8 3 12 . Fire 59 | . 14 . 39 6 Melee . | . . . . . Ram . | . . . . . Kick . | . . . . . Crush . | . . . . . Escape Stasis . | . . . . . Rewire . | . . . . . Trap . | . . . . . Miscellaneous . | . . . . . Route ------- -11/Scrapyard -10/Materials -10/Mines -9/Materials -9/Mines History --------- Turn | Location | Event 11 | -11/Scrapyard | Discovered new exit (range 12) 98 | -11/Scrapyard | Entered Materials 255 | -10/Materials | Discovered new exit (range 9) 269 | -10/Materials | Entered Mines 270 | -10/Mines | Met a Derelict bent on vengeance 308 | -10/Mines | Build established: Mutant 377 | -10/Mines | Learned location of Storage (-8) 389 | -10/Mines | Found a damaged Exp. Sensor Array with a note attached 394 | -10/Mines | Found Prototype Device 394 | -10/Mines | Identified Exp. Sensor Array 476 | -10/Mines | Learned Materials stockpile data 555 | -10/Mines | Discovered new exit (range 11) 567 | -10/Mines | Entered Materials 567 | -9/Materials | Evolved 2 slots: Propulsion x1, Utility x1 943 | -9/Materials | Lost 3 parts (1p2n) 1000 | -9/Materials | Discovered new exit (range 16) 1102 | -9/Materials | Identified exit to Mines 1103 | -9/Materials | Entered Mines 1160 | -9/Mines | Assembled infested the area 1165 | -9/Mines | Assisted by a Guerilla fighting off Assembled 1225 | -9/Mines | Core integrity fell below 50% 1232 | -9/Mines | Core integrity fell below 20% 1236 | -9/Mines | Destroyed by D-53 Grenadier with Mini Grenade Launcher Last Messages --------------- 01185_ as-29771 destroyed. 01187_ HV Slug penetrates as-38375. 01191_ HV Slug penetrates as-56651. 01191_ as-56651 destroyed. 01191_ as-38375 destroyed. 01194_ as-66408 destroyed. 01194_ as-39152 destroyed. 01198_ The unstable cave ceiling collapses. 01198_ XY-78Y(h) destroyed. 01203_ The unstable cave ceiling collapses. 01214_ Pressure Siphon disabled. 01218_ Lgt. Ion Engine destroyed. 01224_ The unstable cave ceiling collapses. 01229_ Hvy. Assault Rifle destroyed. 01232_ Aluminum Leg destroyed. 01234_ The unstable cave ceiling collapses. 01234_ Lgt. Assault Rifle destroyed. 01235_ Carbon-fiber Leg destroyed. 01236_ The unstable cave ceiling collapses. 01236_ Carbon-fiber Leg destroyed. Map ----- +----------------------------------------------------+ | | | | | | | | | | | | | | | | | | | | | ?????????????????????????????????????????????????? | | ?????????????????????????????????????????###?????? | | ??????????????????????????????????????### ##????? | | ????????????????????????????????????## #????? | | ????????????????????????????????????# #????? | | ????????????????????????????????????# #?????? | | ????????????????????????????????????# #??????? | | ????????????????????????????????????# #???????? | | ????????????????????????#######????## #????????? | | ????####?????????????#### # ###?## #????????? | | ???## ##??????????# ### #????????? | | ??? #?????????# ## ##????????? | | ??? #?####???# #### ##????????? | | ?? ## ###?# ### ##???????? | | ?? ### ## #???????? | | ??? ## @ # """ #???????? | | ??????# # # """ ##???????? | | ???????# ### "" ######???? | | ???????# ### ##?# d "" #???? | | ??????????????## #??# # d #?### | | ???????????????# ?# #### ## | | ??????????????? ## ## #?## # | | ??????????????# ## ?### # #### | | ??????????????## ### ???## ####?# | | ???????????????####?? ????## ##???## | | ????????????????????? ?????### ##???## ## | | ????????????????????? ???????########## ##?## | | ????????????????????? ???????????# $ ##???# | | ????????????????????? ???????????# ## #???? | | ???????????????????????????????????# #???? | | ???????????????????????????????????# #???? | | ???????????????????????????????????# % # #???? | | ???????????????????????????????????# ##???? | | ??????????????????????????????????? ????? | | ??????????????????????????????????% #????? | | ?????????????????????????????????## #????? | | ??????????????????????????????????# # #% #????? | | ??????????????????????????????????#### ##?% #????? | | ?????????????????????????????????????##??? %????? | | ?????????????????????????????????????????? ????? | +----------------------------------------------------+ Best States ------------- Heat Dissipation 28 Energy Generation 10 Energy Capacity 125 Matter Stores 241 Matter Capacity 300 Sight Range 16 Robot Scan Range 20 Terrain Scan Density 10 Armor Coverage 150 Evasion (%) 55 Recoil Reduction 1 Offensive Hacking 10 Item Schematics ----------------- Carbon-fiber Leg | -9/Materials | Scanalyzed Robot Schematics ------------------ None Fabricated ------------ Nothing Repaired ---------- Nothing Studied --------- None Alien Tech Used ----------------- None Achievements -------------- DATA ERROR: Steam Global Achievement% I Have A Map? Organ Harvest Challenges ------------ None Game ------ Seed ResetBurstHammer Manual? 0 Play Time 00:28:52 Cumulative 87.0 hours Start 2026.02.10 @ 19:56:53 End 2026.02.10 @ 20:25:55 Sessions 1 Manual Loads 0 Difficulty Rogue Special Mode None Game No. 90 Rogue 90 Adventurer 0 Explorer 0 Win Type - Total 2 Types 1/0/0/1/0/0/0/0/0/0 Lore% 41 Gallery% 44 Achievement% 25 Wizard Run 0 Options --------- Layout 1 ASCII 0 Keyboard 1 Movement Vi Keybinds 0 Fullscreen 1 Font 24/Smallcaps Map View 50x35 Zoom Use 0% Tactical HUD 1 Map Filters NONE Filters NONE Steam 1 RUN: 36d65ea6-3b82-4dae-a01e-5f345c92906c